fUSD/lending_fUSD_20250105
["ID","MTS","AMOUNT","RATE_DAILY","PERIOD"]
[347769242,1736097054779,-811.88,9.588e-05,2]
[347769243,1736097054789,-500.0,9.588e-05,2]
[347769244,1736097054799,-1525.05,9.588e-05,2]
[347769245,1736097054809,-758.87,9.588e-05,2]
[347769246,1736097054819,-684.2,9.588e-05,2]
[347769247,1736097054828,-976.33,9.588e-05,2]
[347769248,1736097054838,-1024.5,9.588e-05,2]
[347769249,1736097054849,-500.0,9.588e-05,2]
[347769250,1736097054860,-897.75,9.588e-05,2]
[347769251,1736097054871,-2270.81,9.588e-05,2]
[347769252,1736097054882,-500.0,9.588e-05,2]
[347769253,1736097054892,-750.4,9.588e-05,2]
[347769254,1736097054902,-742.21,9.588e-05,2]
[347769255,1736097054912,-1133.82,9.588e-05,2]
[347769256,1736097054922,-500.0,9.588e-05,2]
[347769257,1736097054932,-500.0,9.588e-05,2]
[347769258,1736097054944,-1649.11,9.588e-05,2]
[347769259,1736097054954,-623.15,9.588e-05,2]
[347769260,1736097054966,-500.0,9.588e-05,2]
[347769261,1736097054976,-944.44,9.588e-05,2]
[347769262,1736097054986,-500.0,9.588e-05,2]
[347769263,1736097054996,-500.0,9.588e-05,2]
[347769264,1736097055007,-916.71,9.588e-05,2]
[347769265,1736097055017,-1132.59,9.588e-05,2]
[347769266,1736097055027,-1292.44,9.588e-05,2]
[347769267,1736097055037,-500.0,9.588e-05,2]
[347769268,1736097055047,-552.81,9.588e-05,2]
[347769269,1736097055056,-866.28,9.588e-05,2]
[347769270,1736097055069,-500.0,9.588e-05,2]
[347769271,1736097055079,-1620.35,9.588e-05,2]
[347769272,1736097055096,-500.0,9.588e-05,2]
[347769273,1736097055106,-1543.6,9.588e-05,2]
[347769274,1736097055117,-500.0,9.588e-05,2]
[347769275,1736097055127,-998.68,9.588e-05,2]
[347769276,1736097055138,-728.39,9.588e-05,2]
[347769277,1736097055149,-500.0,9.588e-05,2]
[347769278,1736097055159,-400.19418029,9.589e-05,2]
[347769279,1736097055773,-531.96581971,9.589e-05,2]
[347769280,1736097055784,-125.17228661,9.589e-05,2]
[347769281,1736097055802,-1292.5814419,9.589e-05,2]
[347769282,1736097055834,-697.97627149,9.589e-05,2]
[347769283,1736097055844,-500.0,9.589e-05,2]
[347769284,1736097055854,-698.78,9.589e-05,2]
[347769285,1736097055864,-1025.34,9.589e-05,2]
[347769286,1736097055873,-1102.24,9.589e-05,2]
[347769287,1736097055883,-1679.0,9.589e-05,2]
[347769288,1736097055893,-1000.0,9.589e-05,2]
[347769289,1736097055903,-602.76,9.589e-05,2]
[347769290,1736097055914,-664.85,9.589e-05,2]
[347769291,1736097055924,-2027.05372851,9.589e-05,2]
[347769292,1736097055936,-210.33627149,9.589e-05,2]
[347769293,1736097055945,-994.23229383,9.589e-05,2]
[347769294,1736097055958,-604.32310367,9.589e-05,2]
[347769295,1736097055969,-30.6946025,9.589e-05,2]
[347769296,1736097055979,-662.08039765,9.589e-05,2]
[347769297,1736097055991,-1258.18960235,9.589e-05,2]
[347769298,1736097056001,-4893.86131773,9.589e-05,2]
[347769299,1736097056019,-327.65868227,9.589e-05,2]
[347769300,1736097056028,-465.93741312,9.589e-05,2]
[347769301,1736097056067,-1126.33178132,8.492e-05,2]
[347769302,1736097056079,-408.36821868,8.492e-05,2]
[347769303,1736097056089,-715.86,9.04e-05,2]
[347769304,1736097056099,-341.99258688,9.589e-05,2]
[347769305,1736097056109,-108.55719144,9.589e-05,2]
[347769306,1736097056137,-500.0,9.412e-05,2]
[347769307,1736097056147,-391.44280856,9.589e-05,2]
[347769308,1736097056157,-424.75,9.686e-05,2]
[347769309,1736097056167,-608.97,9.686e-05,2]
[347769310,1736097056177,-500.0,9.686e-05,2]
[347769311,1736097056186,-500.0,9.686e-05,2]
[347769312,1736097056195,-500.0,9.686e-05,2]
[347769313,1736097056205,-500.0,9.686e-05,2]
[347769314,1736097056215,-500.0,9.686e-05,2]
[347769315,1736097056224,-318.75,9.686e-05,2]
[347769316,1736097056235,-361.86,9.686e-05,2]
[347769317,1736097056244,-500.0,9.686e-05,2]
[347769318,1736097056254,-500.0,9.686e-05,2]
[347769319,1736097056264,-500.0,9.686e-05,2]
[347769320,1736097056274,-500.0,9.686e-05,2]
[347769321,1736097056284,-500.0,9.686e-05,2]
[347769322,1736097056293,-500.0,9.686e-05,2]
[347769323,1736097056303,-500.0,9.686e-05,2]
[347769324,1736097056314,-419.15,9.686e-05,2]
[347769325,1736097056324,-373.2602807,9.686e-05,2]
[347769326,1736097056333,-500.0,9.686e-05,2]
[347769327,1736097056343,-500.0,9.686e-05,2]
[347769328,1736097056352,-500.0,9.686e-05,2]
[347769329,1736097056361,-500.0,9.686e-05,2]
[347769330,1736097056372,-500.0,9.686e-05,2]
[347769331,1736097056383,-731.72,9.686e-05,2]
[347769332,1736097056393,-500.0,9.686e-05,2]
[347769333,1736097056403,-500.0,9.686e-05,2]
[347769334,1736097056412,-236.51,9.686e-05,2]
[347769335,1736097056422,-500.0,9.686e-05,2]
[347769336,1736097056432,-500.0,9.686e-05,2]
[347769337,1736097056442,-500.0,9.686e-05,2]
[347769338,1736097056451,-500.0,9.686e-05,2]
[347769339,1736097056461,-500.0,9.686e-05,2]
[347769340,1736097056471,-500.0,9.686e-05,2]
[347769341,1736097056481,-523.24,9.686e-05,2]
[347769342,1736097056491,-500.0,9.686e-05,2]
[347769343,1736097056500,-500.0,9.686e-05,2]
[347769344,1736097056510,-500.0,9.686e-05,2]
[347769345,1736097056519,-500.0,9.686e-05,2]
[347769346,1736097056529,-455.57,9.686e-05,2]
[347769347,1736097056540,-500.0,9.686e-05,2]
[347769348,1736097056549,-500.0,9.686e-05,2]
[347769349,1736097056560,-500.0,9.686e-05,2]
[347769350,1736097056570,-500.0,9.686e-05,2]
[347769351,1736097056579,-500.0,9.686e-05,2]
[347769352,1736097056589,-500.0,9.686e-05,2]
[347769353,1736097056598,-500.0,9.686e-05,2]
[347769354,1736097056609,-500.0,9.686e-05,2]
[347769355,1736097056620,-500.0,9.686e-05,2]
[347769356,1736097056632,-619.97,9.686e-05,2]
[347769357,1736097056643,-184.2581611,9.686e-05,2]
[347769358,1736097056652,-500.0,9.686e-05,2]
[347769359,1736097056662,-500.0,9.686e-05,2]
[347769360,1736097056672,-500.0,9.686e-05,2]
[347769361,1736097056682,-500.0,9.686e-05,2]
[347769362,1736097056692,-500.0,9.686e-05,2]
[347769363,1736097056702,-500.0,9.686e-05,2]
[347769364,1736097056712,-500.0,9.686e-05,2]
[347769365,1736097056722,-182.51,9.686e-05,2]
[347769366,1736097056735,-500.0,9.686e-05,2]
[347769367,1736097056745,-500.0,9.686e-05,2]
[347769368,1736097056755,-839.47,9.686e-05,2]
[347769369,1736097056765,-500.0,9.686e-05,2]
[347769370,1736097056776,-1901.86,9.686e-05,2]
[347769371,1736097056787,-500.0,9.686e-05,2]
[347769372,1736097056798,-1121.33,9.686e-05,2]
[347769373,1736097056808,-500.0,9.686e-05,2]
[347769374,1736097056820,-500.0,9.686e-05,2]
[347769375,1736097056830,-500.0,9.686e-05,2]
[347769376,1736097056839,-500.0,9.686e-05,2]
[347769377,1736097056849,-500.0,9.686e-05,2]
[347769378,1736097056859,-500.0,9.686e-05,2]
[347769379,1736097056869,-500.0,9.686e-05,2]
[347769380,1736097056880,-500.0,9.686e-05,2]
[347769381,1736097056889,-500.0,9.686e-05,2]
[347769382,1736097056899,-500.0,9.686e-05,2]
[347769383,1736097056909,-2372.38,9.686e-05,2]
[347769384,1736097056919,-182.89,9.686e-05,2]
[347769385,1736097056928,-500.0,9.686e-05,2]
[347769386,1736097056938,-500.0,9.686e-05,2]
[347769387,1736097056948,-652.09,9.686e-05,2]
[347769388,1736097056958,-500.0,9.686e-05,2]
[347769389,1736097056968,-500.0,9.686e-05,2]
[347769390,1736097056978,-495.30581869,9.686e-05,2]
[347769391,1736097056989,-500.0,9.686e-05,2]
[347769392,1736097056999,-500.0,9.686e-05,2]
[347769393,1736097057008,-500.0,9.686e-05,2]
[347769394,1736097057019,-947.45,9.686e-05,2]
[347769395,1736097057028,-500.0,9.686e-05,2]
[347769396,1736097057039,-500.0,9.686e-05,2]
[347769397,1736097057049,-598.88,9.686e-05,2]
[347769398,1736097057059,-500.0,9.686e-05,2]
[347769399,1736097057069,-500.0,9.686e-05,2]
[347769400,1736097057079,-654.0,9.686e-05,2]
[347769401,1736097057089,-500.0,9.686e-05,2]
[347769402,1736097057099,-500.0,9.686e-05,2]
[347769403,1736097057109,-514.72,9.686e-05,2]
[347769404,1736097057119,-500.0,9.686e-05,2]
[347769405,1736097057128,-500.0,9.686e-05,2]
[347769406,1736097057138,-528.09,9.686e-05,2]
[347769407,1736097057148,-500.0,9.686e-05,2]
[347769408,1736097057158,-500.0,9.686e-05,2]
[347769409,1736097057168,-500.0,9.686e-05,2]
[347769410,1736097057178,-500.0,9.686e-05,2]
[347769411,1736097057188,-500.0,9.686e-05,2]
[347769412,1736097057198,-500.0,9.686e-05,2]
[347769413,1736097057208,-590.94244365,9.686e-05,2]
[347769414,1736097057218,-500.0,9.686e-05,2]
[347769415,1736097057229,-500.0,9.686e-05,2]
[347769416,1736097057239,-500.0,9.686e-05,2]
[347769417,1736097057249,-1098.73,9.686e-05,2]
[347769418,1736097057260,-500.0,9.686e-05,2]
[347769419,1736097057270,-500.0,9.686e-05,2]
[347769420,1736097057279,-500.0,9.686e-05,2]
[347769421,1736097057289,-500.0,9.686e-05,2]
[347769422,1736097057298,-500.0,9.686e-05,2]
[347769423,1736097057308,-560.86,9.686e-05,2]
[347769424,1736097057319,-500.0,9.686e-05,2]
[347769425,1736097057329,-500.0,9.686e-05,2]
[347769426,1736097057339,-500.0,9.686e-05,2]
[347769427,1736097057349,-500.0,9.686e-05,2]
[347769428,1736097057359,-9423.5452,9.76e-05,2]
[347769429,1736097057370,-200.0,9.78e-05,2]
[347769430,1736097057382,-200.0,9.793e-05,2]
[347769431,1736097057392,-220.83,9.818e-05,2]
[347769432,1736097057402,-1680.12,9.858e-05,2]
[347769433,1736097057411,-766.138512,9.858e-05,2]
[347769434,1736097057421,-704.48,9.858e-05,2]
[347769435,1736097057431,-587.805649,9.858e-05,2]
[347769436,1736097057441,-500.0,9.858e-05,2]
[347769437,1736097057452,-500.0,9.858e-05,2]
[347769438,1736097057463,-1780.51,9.858e-05,2]
[347769439,1736097057473,-961.56,9.858e-05,2]
[347769440,1736097057484,-905.19,9.858e-05,2]
[347769441,1736097057493,-891.51,9.858e-05,2]
[347769442,1736097057503,-237.2810349,9.858e-05,2]
[347769443,1736097057512,-1030.69,9.858e-05,2]
[347769444,1736097057523,-1399.36,9.858e-05,2]
[347769445,1736097057532,-155.612781,9.858e-05,2]
[347769446,1736097057542,-594.48,9.858e-05,2]
[347769447,1736097057552,-832.4,9.858e-05,2]
[347769448,1736097057563,-553.05,9.859e-05,2]
[347769449,1736097057572,-283.08,9.859e-05,2]
[347769450,1736097057582,-558.34,9.859e-05,2]
[347769451,1736097057592,-500.0,9.859e-05,2]
[347769452,1736097057602,-500.0,9.859e-05,2]
[347769453,1736097057611,-500.0,9.859e-05,2]
[347769454,1736097057621,-500.0,9.859e-05,2]
[347769455,1736097057631,-500.0,9.859e-05,2]
[347769456,1736097057640,-500.0,9.859e-05,2]
[347769457,1736097057650,-417.51,9.859e-05,2]
[347769458,1736097057660,-277.99,9.859e-05,2]
[347769459,1736097057670,-500.0,9.859e-05,2]
[347769460,1736097057679,-500.0,9.859e-05,2]
[347769461,1736097057689,-500.0,9.859e-05,2]
[347769462,1736097057699,-500.0,9.859e-05,2]
[347769463,1736097057708,-178.87,9.859e-05,2]
[347769464,1736097057718,-500.0,9.859e-05,2]
[347769465,1736097057727,-500.0,9.859e-05,2]
[347769466,1736097057737,-700.88,9.859e-05,2]
[347769467,1736097057750,-556.79,9.859e-05,2]
[347769468,1736097057760,-500.0,9.859e-05,2]
[347769469,1736097057770,-500.0,9.859e-05,2]
[347769470,1736097057779,-500.0,9.859e-05,2]
[347769471,1736097057788,-500.0,9.859e-05,2]
[347769472,1736097057798,-500.0,9.859e-05,2]
[347769473,1736097057890,-500.0,9.859e-05,2]
[347769474,1736097057900,-500.0,9.859e-05,2]
[347769475,1736097057910,-601.32,9.859e-05,2]
[347769476,1736097057919,-571.88,9.859e-05,2]
[347769477,1736097057929,-664.87,9.859e-05,2]
[347769478,1736097057939,-536.69,9.859e-05,2]
[347769479,1736097057949,-500.0,9.859e-05,2]
[347769480,1736097057958,-500.0,9.859e-05,2]
[347769481,1736097057969,-500.0,9.859e-05,2]
[347769482,1736097057978,-500.0,9.859e-05,2]
[347769483,1736097057987,-500.0,9.859e-05,2]
[347769484,1736097057997,-203.15881184,9.859e-05,2]
[347769485,1736097058007,-500.0,9.859e-05,2]
[347769486,1736097058016,-500.0,9.859e-05,2]
[347769487,1736097058026,-500.0,9.859e-05,2]
[347769488,1736097058036,-578.14,9.859e-05,2]
[347769489,1736097058046,-500.0,9.859e-05,2]
[347769490,1736097058057,-500.0,9.859e-05,2]
[347769491,1736097058067,-633.35,9.859e-05,2]
[347769492,1736097058076,-578.17,9.859e-05,2]
[347769493,1736097058087,-500.0,9.859e-05,2]
[347769494,1736097058096,-500.0,9.859e-05,2]
[347769495,1736097058106,-700.08,9.859e-05,2]
[347769496,1736097058117,-500.0,9.859e-05,2]
[347769497,1736097058127,-500.0,9.859e-05,2]
[347769498,1736097058137,-500.0,9.859e-05,2]
[347769499,1736097058148,-794.97,9.859e-05,2]
[347769500,1736097058157,-500.0,9.859e-05,2]
[347769501,1736097058167,-500.0,9.859e-05,2]
[347769502,1736097058177,-599.09,9.859e-05,2]
[347769503,1736097058187,-500.0,9.859e-05,2]
[347769504,1736097058197,-287.46,9.859e-05,2]
[347769505,1736097058207,-762.48,9.859e-05,2]
[347769506,1736097058217,-508.75,9.859e-05,2]
[347769507,1736097058227,-500.0,9.859e-05,2]
[347769508,1736097058237,-1755.58,9.86e-05,2]
[347769509,1736097058246,-500.0,9.86e-05,2]
[347769510,1736097058254,-638.89,9.86e-05,2]
[347769511,1736097058264,-221.42,9.86e-05,2]
[347769512,1736097058273,-2164.95,9.86e-05,2]
[347769513,1736097058283,-1234.8,9.86e-05,2]
[347769514,1736097058291,-500.0,9.86e-05,2]
[347769515,1736097058300,-262.97446223,9.86e-05,2]
[347769516,1736097058309,-500.0,9.86e-05,2]
[347769517,1736097058320,-756.66,9.86e-05,2]
[347769518,1736097058329,-500.0,9.86e-05,2]
[347769519,1736097058339,-1099.05,9.86e-05,2]
[347769520,1736097058348,-318.23,9.86e-05,2]
[347769521,1736097058359,-500.0,9.86e-05,2]
[347769522,1736097058369,-500.0,9.86e-05,2]
[347769523,1736097058383,-500.0,9.86e-05,2]
[347769524,1736097058393,-993.51,9.86e-05,2]
[347769525,1736097058403,-500.0,9.86e-05,2]
[347769526,1736097058412,-500.0,9.86e-05,2]
[347769527,1736097058422,-928.38,9.86e-05,2]
[347769528,1736097058431,-651.19,9.86e-05,2]
[347769529,1736097058441,-1569.04,9.86e-05,2]
[347769530,1736097058450,-1414.11,9.86e-05,2]
[347769531,1736097058459,-1755.76,9.86e-05,2]
[347769532,1736097058470,-553.42,9.86e-05,2]
[347769533,1736097058480,-1658.3,9.86e-05,2]
[347769534,1736097058490,-882.25,9.86e-05,2]
[347769535,1736097058500,-1011.32,9.86e-05,2]
[347769536,1736097058510,-500.0,9.86e-05,2]
[347769537,1736097058519,-1576.63,9.86e-05,2]
[347769538,1736097058529,-961.74,9.862e-05,2]
[347769539,1736097058538,-2872.77,9.862e-05,2]
[347769540,1736097058548,-757.54,9.862e-05,2]
[347769541,1736097058558,-500.0,9.862e-05,2]
[347769542,1736097058568,-1689.38,9.862e-05,2]
[347769543,1736097058578,-582.28,9.862e-05,2]
[347769544,1736097058588,-500.0,9.862e-05,2]
[347769545,1736097058597,-500.0,9.862e-05,2]
[347769546,1736097058606,-811.88,9.862e-05,2]
[347769547,1736097058615,-500.0,9.862e-05,2]
[347769548,1736097058625,-1525.05,9.862e-05,2]
[347769549,1736097058635,-758.87,9.862e-05,2]
[347769550,1736097058644,-684.2,9.862e-05,2]
[347769551,1736097058654,-976.33,9.862e-05,2]
[347769552,1736097058663,-1024.5,9.862e-05,2]
[347769553,1736097058673,-500.0,9.862e-05,2]
[347769554,1736097058683,-897.75,9.862e-05,2]
[347769555,1736097058693,-2270.81,9.862e-05,2]
[347769556,1736097058702,-500.0,9.862e-05,2]
[347769557,1736097058711,-750.4,9.862e-05,2]
[347769558,1736097058721,-742.21,9.862e-05,2]
[347769559,1736097058731,-500.0,9.862e-05,2]
[347769560,1736097058741,-1133.82,9.862e-05,2]
[347769561,1736097058750,-500.0,9.862e-05,2]
[347769562,1736097058760,-1649.11,9.862e-05,2]
[347769563,1736097058769,-623.15,9.862e-05,2]
[347769564,1736097058779,-500.0,9.862e-05,2]
[347769565,1736097058789,-944.44,9.862e-05,2]
[347769566,1736097058799,-500.0,9.862e-05,2]
[347769567,1736097058808,-916.71,9.862e-05,2]
[347769568,1736097058819,-1132.59,9.862e-05,2]
[347769569,1736097058829,-1292.44,9.862e-05,2]
[347769570,1736097058838,-500.0,9.862e-05,2]
[347769571,1736097058848,-552.81,9.862e-05,2]
[347769572,1736097058858,-866.28,9.862e-05,2]
[347769573,1736097058867,-500.0,9.862e-05,2]
[347769574,1736097058877,-1620.35,9.862e-05,2]
[347769575,1736097058887,-500.0,9.862e-05,2]
[347769576,1736097058897,-1543.6,9.862e-05,2]
[347769577,1736097058906,-500.0,9.862e-05,2]
[347769578,1736097058915,-998.68,9.862e-05,2]
[347769579,1736097058924,-728.39,9.862e-05,2]
[347769580,1736097058933,-500.0,9.862e-05,2]
[347769581,1736097058943,-932.16,9.863e-05,2]
[347769582,1736097058952,-2115.73,9.863e-05,2]
[347769583,1736097058962,-500.0,9.863e-05,2]
[347769584,1736097058971,-698.78,9.863e-05,2]
[347769585,1736097058981,-1025.34,9.863e-05,2]
[347769586,1736097058991,-1102.24,9.863e-05,2]
[347769587,1736097059000,-1679.0,9.863e-05,2]
[347769588,1736097059009,-1000.0,9.863e-05,2]
[347769589,1736097059020,-602.76,9.863e-05,2]
[347769590,1736097059030,-664.85,9.863e-05,2]
[347769591,1736097059039,-2237.39,9.863e-05,2]
[347769592,1736097059049,-1629.25,9.863e-05,2]
[347769593,1736097059059,-1920.27,9.863e-05,2]
[347769594,1736097059070,-5221.52,9.863e-05,2]
[347769595,1736097059080,-807.93,9.863e-05,2]
[347769596,1736097059090,-500.0,9.863e-05,2]
[347769597,1736097059100,-15021.05994477,9.866e-05,4]
[347769598,1736097059109,-4172.51792909,9.866e-05,4]
[347769599,1736097059119,-608.97,9.96e-05,2]
[347769600,1736097059130,-500.0,9.96e-05,2]
[347769601,1736097059140,-500.0,9.96e-05,2]
[347769602,1736097059149,-500.0,9.96e-05,2]
[347769603,1736097059159,-500.0,9.96e-05,2]
[347769604,1736097059168,-500.0,9.96e-05,2]
[347769605,1736097059178,-500.0,9.96e-05,2]
[347769606,1736097059188,-500.0,9.96e-05,2]
[347769607,1736097059198,-500.0,9.96e-05,2]
[347769608,1736097059207,-500.0,9.96e-05,2]
[347769609,1736097059217,-284.01777992,9.96e-05,2]
[347769610,1736097059227,-500.0,9.96e-05,2]
[347769611,1736097059236,-407.45,9.96e-05,2]
[347769612,1736097059245,-500.0,9.96e-05,2]
[347769613,1736097059255,-610.74447934,9.96e-05,2]
[347769614,1736097059264,-500.0,9.96e-05,2]
[347769615,1736097059274,-500.0,9.96e-05,2]
[347769616,1736097059284,-586.48,9.96e-05,2]
[347769617,1736097059294,-731.72,9.96e-05,2]
[347769618,1736097059303,-180.82,9.96e-05,2]
[347769619,1736097059314,-500.0,9.96e-05,2]
[347769620,1736097059323,-500.0,9.96e-05,2]
[347769621,1736097059332,-500.0,9.96e-05,2]
[347769622,1736097059342,-500.0,9.96e-05,2]
[347769623,1736097059352,-500.0,9.96e-05,2]
[347769624,1736097059363,-500.0,9.96e-05,2]
[347769625,1736097059373,-500.0,9.96e-05,2]
[347769626,1736097059383,-523.24,9.96e-05,2]
[347769627,1736097059393,-500.0,9.96e-05,2]
[347769628,1736097059403,-500.0,9.96e-05,2]
[347769629,1736097059412,-500.0,9.96e-05,2]
[347769630,1736097059422,-500.0,9.96e-05,2]
[347769631,1736097059431,-500.0,9.96e-05,2]
[347769632,1736097059441,-500.0,9.96e-05,2]
[347769633,1736097059450,-500.0,9.96e-05,2]
[347769634,1736097059459,-500.0,9.96e-05,2]
[347769635,1736097059469,-500.0,9.96e-05,2]
[347769636,1736097059479,-500.0,9.96e-05,2]
[347769637,1736097059488,-500.0,9.96e-05,2]
[347769638,1736097059497,-500.0,9.96e-05,2]
[347769639,1736097059507,-500.0,9.96e-05,2]
[347769640,1736097059517,-619.97,9.96e-05,2]
[347769641,1736097059527,-500.0,9.96e-05,2]
[347769642,1736097059536,-500.0,9.96e-05,2]
[347769643,1736097059546,-500.0,9.96e-05,2]
[347769644,1736097059555,-500.0,9.96e-05,2]
[347769645,1736097059565,-500.0,9.96e-05,2]
[347769646,1736097059574,-500.0,9.96e-05,2]
[347769647,1736097059583,-500.0,9.96e-05,2]
[347769648,1736097059593,-313.39537876,9.96e-05,2]
[347769649,1736097059602,-500.0,9.96e-05,2]
[347769650,1736097059612,-839.47,9.96e-05,2]
[347769651,1736097059621,-500.0,9.96e-05,2]
[347769652,1736097059630,-1901.86,9.96e-05,2]
[347769653,1736097059640,-500.0,9.96e-05,2]
[347769654,1736097059649,-1121.33,9.96e-05,2]
[347769655,1736097059659,-500.0,9.96e-05,2]
[347769656,1736097059668,-160.46400768,9.96e-05,2]
[347769657,1736097059678,-500.0,9.96e-05,2]
[347769658,1736097059687,-500.0,9.96e-05,2]
[347769659,1736097059696,-500.0,9.96e-05,2]
[347769660,1736097059706,-500.0,9.96e-05,2]
[347769661,1736097059716,-500.0,9.96e-05,2]
[347769662,1736097059725,-500.0,9.96e-05,2]
[347769663,1736097059734,-500.0,9.96e-05,2]
[347769664,1736097059744,-500.0,9.96e-05,2]
[347769665,1736097059753,-2372.38,9.96e-05,2]
[347769666,1736097059763,-500.0,9.96e-05,2]
[347769667,1736097059772,-500.0,9.96e-05,2]
[347769668,1736097059782,-652.09,9.96e-05,2]
[347769669,1736097059791,-500.0,9.96e-05,2]
[347769670,1736097059801,-500.0,9.96e-05,2]
[347769671,1736097059810,-500.0,9.96e-05,2]
[347769672,1736097059822,-500.0,9.96e-05,2]
[347769673,1736097059832,-604.69,9.96e-05,2]
[347769674,1736097059842,-500.0,9.96e-05,2]
[347769675,1736097059851,-947.45,9.96e-05,2]
[347769676,1736097059861,-500.0,9.96e-05,2]
[347769677,1736097059871,-500.0,9.96e-05,2]
[347769678,1736097059881,-500.0,9.96e-05,2]
[347769679,1736097059890,-654.0,9.96e-05,2]
[347769680,1736097059899,-500.0,9.96e-05,2]
[347769681,1736097059909,-500.0,9.96e-05,2]
[347769682,1736097059917,-500.0,9.96e-05,2]
[347769683,1736097059927,-500.0,9.96e-05,2]
[347769684,1736097059936,-528.09,9.96e-05,2]
[347769685,1736097059945,-500.0,9.96e-05,2]
[347769686,1736097059955,-500.0,9.96e-05,2]
[347769687,1736097059965,-500.0,9.96e-05,2]
[347769688,1736097059974,-500.0,9.96e-05,2]
[347769689,1736097059985,-500.0,9.96e-05,2]
[347769690,1736097059995,-500.0,9.96e-05,2]
[347769691,1736097060004,-500.0,9.96e-05,2]
[347769692,1736097060014,-156.26,9.96e-05,2]
[347769693,1736097060023,-500.0,9.96e-05,2]
[347769694,1736097060033,-1098.73,9.96e-05,2]
[347769695,1736097060043,-500.0,9.96e-05,2]
[347769696,1736097060054,-500.0,9.96e-05,2]
[347769697,1736097060064,-500.0,9.96e-05,2]
[347769698,1736097060075,-500.0,9.96e-05,2]
[347769699,1736097060086,-488.87,9.96e-05,2]
[347769700,1736097060096,-560.86,9.96e-05,2]
[347769701,1736097060106,-500.0,9.96e-05,2]
[347769702,1736097060116,-500.0,9.96e-05,2]
[347769703,1736097060127,-332.86,9.96e-05,2]
[347769704,1736097060138,-500.0,9.96e-05,2]
[347769705,1736097060147,-542.29,0.0001,2]
[347769706,1736097060157,-500.0,0.0001005,2]
[347769707,1736097060166,-1680.12,0.00010132,2]
[347769708,1736097060177,-766.138512,0.00010132,2]
[347769709,1736097060186,-704.48,0.00010132,2]
[347769710,1736097060197,-587.805649,0.00010132,2]
[347769711,1736097060207,-500.0,0.00010132,2]
[347769712,1736097060217,-500.0,0.00010132,2]
[347769713,1736097060227,-1780.51,0.00010132,2]
[347769714,1736097060237,-961.56,0.00010132,2]
[347769715,1736097060247,-905.19,0.00010132,2]
[347769716,1736097060256,-891.51,0.00010132,2]
[347769717,1736097060267,-1030.69,0.00010132,2]
[347769718,1736097060277,-1399.36,0.00010132,2]
[347769719,1736097060287,-177.04717,0.00010132,2]
[347769720,1736097060298,-594.48,0.00010132,2]
[347769721,1736097060308,-832.4,0.00010132,2]
[347769722,1736097060319,-553.05,0.00010133,2]
[347769723,1736097060329,-558.34,0.00010133,2]
[347769724,1736097060339,-346.4,0.00010133,2]
[347769725,1736097060348,-500.0,0.00010133,2]
[347769726,1736097060358,-500.0,0.00010133,2]
[347769727,1736097060368,-500.0,0.00010133,2]
[347769728,1736097060381,-500.0,0.00010133,2]
[347769729,1736097060391,-500.0,0.00010133,2]
[347769730,1736097060401,-500.0,0.00010133,2]
[347769731,1736097060411,-500.0,0.00010133,2]
[347769732,1736097060421,-500.0,0.00010133,2]
[347769733,1736097060432,-500.0,0.00010133,2]
[347769734,1736097060441,-500.0,0.00010133,2]
[347769735,1736097060454,-500.0,0.00010133,2]
[347769736,1736097060464,-700.88,0.00010133,2]
[347769737,1736097060474,-556.79,0.00010133,2]
[347769738,1736097060484,-307.91,0.00010133,2]
[347769739,1736097060495,-500.0,0.00010133,2]
[347769740,1736097060504,-500.0,0.00010133,2]
[347769741,1736097060514,-484.33,0.00010133,2]